bitfinex/quotes_SOLUSD_20241107
["timestamp","ask_amount","ask_price","bid_price","bid_amount"]
[1731004153748,18.00994902,195.66,195.62,29.05725045]
[1731004154347,18.00994902,195.65,195.62,5.28036645]
[1731004154523,18.00994902,195.64,195.62,5.28036645]
[1731004156652,18.00994902,195.66,195.62,5.28036645]
[1731004157153,0.2,195.68,195.62,5.28036645]
[1731004157323,18.00994902,195.65,195.62,5.28036645]
[1731004157946,0.1,195.67,195.62,5.28036645]
[1731004158148,21.82192647,195.66,195.62,5.28036645]
[1731004158346,18.00994902,195.66,195.62,5.28036645]
[1731004158551,16.0538,195.78,195.62,5.28036645]
[1731004158552,18.00994902,195.65,195.62,5.28036645]
[1731004159157,18.00994902,195.66,195.62,5.28036645]
[1731004159454,18.00994902,195.67,195.62,5.28036645]
[1731004159828,3.81179277,195.66,195.62,5.28036645]
[1731004160051,18.00994902,195.65,195.62,5.28036645]
[1731004160238,18.00994902,195.66,195.62,5.28036645]
[1731004160553,3.81271393,195.65,195.62,5.28036645]
[1731004160852,18.00994902,195.66,195.62,5.28036645]
[1731004161034,3.81274462,195.65,195.62,5.28036645]
[1731004161236,3.81473908,195.64,195.62,5.28036645]
[1731004161448,18.00994902,195.67,195.62,5.28036645]
[1731004161748,3.81473691,195.66,195.64,18.00994902]
[1731004161949,3.81473691,195.66,195.62,5.28036645]
[1731004161950,18.00994902,195.69,195.63,18.00994902]
[1731004162145,18.00994902,195.66,195.6,18.00994902]
[1731004162449,18.00994902,195.64,195.62,5.27269306]
[1731004163154,18.00994902,195.65,195.62,5.27269306]
[1731004163343,3.8167812,195.64,195.62,5.27269306]
[1731004163527,3.8167812,195.63,195.62,5.27269306]
[1731004163728,18.00994902,195.65,195.62,5.27269306]
[1731004163929,3.81676391,195.64,195.62,5.27269306]
[1731004164358,21.82671293,195.64,195.62,5.27269306]
[1731004164543,3.81676391,195.63,195.62,5.27269306]
[1731004165253,21.82671293,195.63,195.62,5.27269306]
[1731004165832,3.81676391,195.63,195.62,5.27269306]
[1731004166456,3.81676391,195.64,195.62,5.27269306]
[1731004166635,3.81676391,195.63,195.62,5.27269306]
[1731004167254,18.00994902,195.64,195.62,5.27269306]
[1731004167456,18.00994902,195.65,195.62,5.27269306]
[1731004167749,3.81735303,195.64,195.63,0.12549]
[1731004167959,0.2,195.76,195.63,84.68792302]
[1731004168139,3.81647049,195.75,195.71,18.00994902]
[1731004168335,3.81647049,195.74,195.7,18.00994902]
[1731004168535,3.81647049,195.73,195.69,18.00994902]
[1731004168752,3.81647049,195.72,195.69,18.00994902]
[1731004169057,3.81647049,195.71,195.69,18.00994902]
[1731004169273,18.00994902,195.76,195.69,18.00994902]
[1731004169443,3.81513417,195.75,195.69,18.00994902]
[1731004169649,3.81513417,195.74,195.69,18.00994902]
[1731004169849,3.81513417,195.73,195.69,18.00994902]
[1731004170048,3.81513417,195.72,195.69,18.00994902]
[1731004170254,3.81513417,195.71,195.69,18.00994902]
[1731004170554,18.00994902,195.75,195.69,18.00994902]
[1731004170739,3.81453295,195.74,195.69,18.00994902]
[1731004171071,3.81453295,195.73,195.68,41.78683302]
[1731004171230,3.81453295,195.72,195.68,18.00994902]
[1731004171434,3.81453295,195.71,195.68,18.00994902]
[1731004171648,18.00994902,195.75,195.69,18.00994902]
[1731004171853,3.81408683,195.74,195.69,18.00994902]
[1731004172035,3.81408683,195.73,195.68,18.00994902]
[1731004172372,3.81408683,195.72,195.69,18.00994902]
[1731004172580,3.81408683,195.71,195.69,18.00994902]
[1731004172865,18.00994902,195.75,195.68,18.00994902]
[1731004173071,21.82352384,195.74,195.68,18.00994902]
[1731004173274,3.81357482,195.73,195.69,18.00994902]
[1731004173480,3.81357482,195.72,195.68,18.00994902]
[1731004173773,3.81357482,195.71,195.68,18.00994902]
[1731004173975,18.00994902,195.73,195.67,18.00994902]
[1731004174146,3.81319451,195.72,195.67,18.00994902]
[1731004174459,3.81319451,195.71,195.67,18.00994902]
[1731004174672,18.00994902,195.73,195.67,18.00994902]
[1731004174876,3.81347153,195.72,195.67,18.00994902]
[1731004175074,3.81347153,195.71,195.67,18.00994902]
[1731004175264,18.10994902,195.74,195.67,18.00994902]
[1731004175574,3.81352683,195.73,195.67,18.00994902]
[1731004175773,3.81352683,195.72,195.67,18.00994902]
[1731004175974,3.81352683,195.71,195.67,18.00994902]
[1731004176147,18.00994902,195.74,195.67,18.00994902]
[1731004176348,3.81328974,195.73,195.67,18.00994902]
[1731004176571,3.81356866,195.72,195.65,43.776884]
[1731004176756,3.81356866,195.71,195.67,18.00994902]
[1731004176961,18.00994902,195.7,195.65,43.776884]
[1731004177164,18.00994902,195.73,195.67,20.0]
[1731004177375,3.81340914,195.72,195.67,38.00994902]
[1731004177679,3.81340914,195.71,195.67,38.00994902]
[1731004177979,18.10994902,195.74,195.67,38.00994902]
[1731004178162,3.8134098,195.73,195.67,38.00994902]
[1731004178366,3.8134098,195.72,195.67,38.00994902]
[1731004178558,3.8134098,195.71,195.67,38.00994902]
[1731004178758,18.10994902,195.74,195.67,38.00994902]
[1731004178954,3.91321846,195.73,195.66,18.00994902]
[1731004179160,18.00994902,195.71,195.65,18.00994902]
[1731004179369,3.81321846,195.7,195.65,18.00994902]
[1731004179569,18.00994902,195.7,195.64,23.28379544]
[1731004179782,3.81350968,195.69,195.64,23.28379544]
[1731004179963,18.00994902,195.71,195.65,18.00994902]
[1731004180152,3.81329097,195.7,195.66,18.00994902]
[1731004180352,18.00994902,195.72,195.66,18.00994902]
[1731004180553,3.8132986,195.71,195.66,18.00994902]
[1731004180776,3.8132986,195.7,195.68,18.00994902]
[1731004180981,0.2,195.75,195.68,18.00994902]
[1731004180982,18.00994902,195.74,195.68,18.00994902]
[1731004181160,3.81310236,195.73,195.68,18.00994902]
[1731004181361,3.81310236,195.72,195.68,18.00994902]
[1731004181574,3.81310236,195.71,195.68,18.00994902]
[1731004181768,18.00994902,195.73,195.66,18.00994902]
[1731004181969,3.81292295,195.72,195.67,23.776884]
[1731004182279,3.81292295,195.71,195.67,23.776884]
[1731004182486,3.81292295,195.7,195.66,18.00994902]
[1731004182655,18.00994902,195.71,195.65,43.776884]
[1731004182854,21.8228018,195.7,195.63,22.7756]
[1731004183051,18.00994902,195.69,195.64,25.2898079]
[1731004183474,0.1,195.7,195.64,25.2898079]
[1731004183475,18.10994902,195.7,195.64,25.2898079]
[1731004184376,18.10994902,195.7,195.64,43.29975692]
[1731004185258,3.81294194,195.69,195.64,5.2898079]
[1731004185469,18.20994902,195.7,195.64,5.2898079]
[1731004185782,3.81295116,195.69,195.64,23.29975692]
[1731004185980,3.81300317,195.68,195.64,23.29975692]
[1731004186178,18.20994902,195.7,195.64,23.29975692]
[1731004186380,3.81315771,195.69,195.64,23.29975692]
[1731004186682,3.81315771,195.68,195.64,23.29975692]
[1731004186857,18.10994902,195.7,195.64,23.29975692]
[1731004187059,9.91421101,195.69,195.64,23.29975692]
[1731004187379,3.81315631,195.68,195.64,16.81100506]
[1731004187584,3.81315631,195.67,195.64,16.81100506]
[1731004187886,11.62119716,195.7,195.64,16.81100506]
[1731004188090,9.91464398,195.69,195.64,16.81100506]
[1731004188260,3.81332461,195.68,195.64,16.81100506]
[1731004188583,11.62119716,195.7,195.64,16.81100506]
[1731004188758,0.1,195.74,195.69,11.52119716]
[1731004188959,9.91292378,195.73,195.69,11.52119716]
[1731004189176,3.81266299,195.72,195.68,11.52119716]
[1731004189379,3.81266299,195.71,195.68,11.52119716]
[1731004189580,3.81266299,195.7,195.68,17.99360515]
[1731004189776,18.09360515,195.74,195.68,17.99360515]
[1731004189973,10.01184218,195.73,195.68,17.99360515]
[1731004190176,3.81224699,195.72,195.68,17.99360515]
[1731004190389,3.81224699,195.71,195.68,17.99360515]
[1731004190561,18.09360515,195.74,195.68,17.99360515]
[1731004190758,28.00434415,195.73,195.66,17.99360515]
[1731004191096,0.1,195.71,195.65,37.99360515]
[1731004191285,3.81182269,195.7,195.65,37.99360515]
[1731004191481,18.09360515,195.71,195.65,37.99360515]
[1731004191677,18.09360515,195.71,195.65,17.99360515]
[1731004191885,17.99360515,195.7,195.64,23.28341305]
[1731004192386,17.99360515,195.7,195.64,5.2898079]
[1731004192781,17.99360515,195.7,195.64,23.28341305]
[1731004192963,18.09360515,195.68,195.64,5.2898079]
[1731004193163,17.99360515,195.67,195.64,5.2898079]
[1731004193778,0.1,195.68,195.64,5.2898079]
[1731004193779,18.09360515,195.68,195.64,5.2898079]
[1731004193991,17.99360515,195.68,195.64,5.2898079]
[1731004194179,17.99360515,195.71,195.65,17.99360515]
[1731004194374,6.10043002,195.7,195.65,17.99360515]
[1731004194580,18.09360515,195.72,195.65,17.99360515]
[1731004194581,6.10043002,195.69,195.65,17.99360515]
[1731004194875,0.1,195.79,195.67,16.4461]
[1731004195077,6.10045741,195.78,195.73,17.99360515]
[1731004195289,6.10045741,195.77,195.73,17.99360515]
[1731004195464,0.1,195.8,195.74,17.99360515]
[1731004195865,18.09360515,195.8,195.73,17.99360515]
[1731004196278,0.1,195.83,195.76,20.0]
[1731004196467,18.09360515,195.83,195.76,37.99360515]
[1731004196661,162.9,195.82,195.76,37.99360515]
[1731004197088,162.9,195.82,195.77,17.99360515]
[1731004198969,180.89360515,195.82,195.76,17.99360515]
[1731004199182,17.99360515,195.82,195.76,17.99360515]
[1731004200291,17.99360515,195.8,195.75,23.776884]
[1731004200497,17.99360515,195.8,195.74,23.776884]
[1731004201068,17.99360515,195.79,195.73,23.776884]
[1731004201400,18.09360515,195.8,195.73,61.77048915]
[1731004201572,17.99360515,195.8,195.73,61.77048915]
[1731004201968,17.99360515,195.8,195.74,17.99360515]
[1731004202169,18.09360515,195.81,195.74,17.99360515]
[1731004202384,18.09360515,195.81,195.75,17.99360515]
[1731004202588,0.1,195.82,195.75,17.99360515]
[1731004202589,18.19360515,195.82,195.75,17.99360515]
[1731004202798,17.99360515,195.83,195.77,17.99360515]
[1731004203000,18.09360515,195.85,195.78,17.99360515]
[1731004203184,0.1,195.83,195.78,17.99360515]
[1731004203503,0.1,195.83,195.73,43.776884]
[1731004203504,18.09360515,195.84,195.77,17.99360515]
[1731004203690,0.1,195.83,195.77,17.99360515]
[1731004204208,18.19360515,195.83,195.76,17.99360515]
[1731004204583,18.09360515,195.82,195.75,17.99360515]
[1731004204780,17.99360515,195.81,195.75,17.99360515]
[1731004205882,18.09360515,195.82,195.76,17.99360515]
[1731004206082,0.1,195.83,195.73,43.776884]
[1731004206083,0.1,195.8,195.75,17.99360515]
[1731004206387,0.1,195.8,195.68,5.30556941]
[1731004206388,18.09360515,195.8,195.74,17.99360515]
[1731004206589,18.09360515,195.8,195.74,20.0]
[1731004206897,18.09360515,195.8,195.74,17.99360515]
[1731004207703,0.1,195.84,195.78,17.99360515]
[1731004207901,0.1,195.83,195.78,17.99360515]
[1731004208377,0.1,195.83,195.77,17.99360515]
[1731004208580,0.1,195.83,195.78,20.0]
[1731004208781,18.09360515,195.83,195.78,20.0]
[1731004209004,0.1,195.81,195.75,33.85720515]
[1731004209307,0.1,195.81,195.74,6.0752]
[1731004209308,17.99360515,195.8,195.74,17.99360515]
[1731004209805,18.09360515,195.8,195.74,17.99360515]
[1731004210103,0.1,195.77,195.72,17.99360515]
[1731004210310,18.09360515,195.77,195.71,17.99360515]
[1731004210682,0.1,195.77,195.72,17.99360515]
[1731004211717,16.393,195.81,195.7,15.8636]
[1731004211718,0.1,195.81,195.75,17.99360515]
[1731004212005,0.2,195.81,195.75,17.99360515]
[1731004212799,0.1,195.81,195.77,17.99360515]
[1731004213803,0.1,195.87,195.8,17.99360515]
[1731004214109,18.19360515,195.87,195.81,17.99360515]
[1731004214781,18.19360515,195.87,195.78,15.5731]
[1731004214782,18.09360515,195.86,195.8,17.99360515]
[1731004215416,18.09360515,195.86,195.78,15.5731]
[1731004215417,0.1,195.84,195.79,17.99360515]
[1731004215579,0.1,195.84,195.79,20.0]
[1731004216205,17.99360515,195.84,195.79,20.0]
[1731004216516,18.09360515,195.86,195.79,37.99360515]
[1731004216983,0.1,195.84,195.79,37.99360515]
[1731004217178,18.09360515,195.85,195.79,20.0]
[1731004217813,0.1,195.84,195.79,20.0]
[1731004217984,0.1,195.84,195.79,37.99360515]
[1731004218299,18.09360515,195.85,195.79,37.99360515]
[1731004218615,0.1,195.84,195.79,37.99360515]
[1731004218909,17.99360515,195.85,195.79,37.99360515]
[1731004219086,0.1,195.86,195.8,17.99360515]
[1731004219783,18.09360515,195.86,195.8,17.99360515]
[1731004220183,0.1,195.84,195.79,37.99360515]
[1731004220781,0.1,195.84,195.79,20.0]
[1731004220993,0.1,195.84,195.79,37.99360515]
[1731004221396,0.1,195.84,195.79,20.0]
[1731004221603,17.99360515,195.85,195.79,37.99360515]
[1731004221793,18.09360515,195.85,195.79,37.99360515]
[1731004222108,18.09360515,195.86,195.8,17.99360515]
[1731004222504,0.1,195.86,195.8,17.99360515]
[1731004222711,17.99360515,195.87,195.81,17.99360515]
[1731004222712,0.1,195.87,195.81,17.99360515]
[1731004223392,0.1,195.85,195.81,17.99360515]
[1731004223592,0.1,195.86,195.81,17.99360515]
[1731004224108,0.1,195.86,195.79,20.0]
[1731004224109,0.1,195.85,195.8,17.99360515]
[1731004224301,0.1,195.83,195.79,37.99360515]
[1731004224507,0.1,195.83,195.79,20.0]
[1731004224805,0.1,195.81,195.76,17.99360515]
[1731004225009,0.1,195.81,195.77,20.0]
[1731004225214,0.1,195.81,195.76,17.99360515]
[1731004225215,0.1,195.8,195.75,17.99360515]
[1731004226608,0.1,195.8,195.76,20.0]
[1731004226817,0.1,195.83,195.78,17.99360515]
[1731004227409,18.09360515,195.84,195.79,20.0]
[1731004227613,0.1,195.85,195.8,24.62120515]
[1731004227795,0.1,195.86,195.8,24.62120515]
[1731004228189,0.1,195.85,195.8,24.62120515]
[1731004229194,0.1,195.89,195.84,17.99360515]
[1731004230001,0.1,195.89,195.83,37.99360515]
[1731004230313,0.1,195.88,195.83,20.0]
[1731004230492,0.1,195.89,195.84,17.99360515]
[1731004230689,0.1,195.88,195.84,17.99360515]
[1731004231113,0.1,195.88,195.83,37.99360515]
[1731004232105,0.1,195.89,195.85,17.99360515]
[1731004232296,0.1,195.89,195.83,20.0]
[1731004232522,0.1,195.89,195.84,17.99360515]
[1731004232733,0.1,195.89,195.83,37.99360515]
[1731004232943,0.1,195.89,195.84,17.99360515]
[1731004233145,0.1,195.89,195.85,17.99360515]
[1731004233749,0.1,195.89,195.84,17.99360515]
[1731004234254,0.1,195.89,195.85,20.0]
[1731004234427,0.5708712,195.91,195.88,20.0]
[1731004234849,0.5708712,195.91,195.88,37.99360515]
[1731004236173,0.5708712,195.91,195.89,17.99360515]
[1731004236977,0.5708712,195.91,195.88,26.0079]
[1731004237473,0.5708712,195.91,195.88,44.00150515]
[1731004239156,0.5708712,195.91,195.88,26.0079]
[1731004239548,0.5708712,195.91,195.87,20.0]
[1731004240347,0.5708712,195.91,195.84,20.0]
[1731004240348,0.6708712,195.91,195.84,20.0]
[1731004240548,0.6708712,195.91,195.87,20.0]
[1731004241379,0.1,195.9,195.84,20.0]
[1731004241675,0.1,195.88,195.83,17.99360515]
[1731004242271,0.1,195.87,195.81,17.99360515]
[1731004242474,0.1,195.87,195.8,5.32146333]
[1731004242475,0.1,195.84,195.8,23.31506848]
[1731004242774,0.1,195.84,195.8,5.32146333]
[1731004243279,0.1,195.84,195.8,23.31506848]
[1731004244076,0.1,195.84,195.8,5.32146333]
[1731004244279,0.1,195.84,195.8,23.31506848]
[1731004244775,0.1,195.84,195.8,5.32146333]
[1731004244970,0.1,195.84,195.8,23.31506848]
[1731004245775,0.1,195.87,195.8,23.31506848]
[1731004245776,0.1,195.87,195.8,5.32146333]
[1731004245979,0.1,195.86,195.82,17.99360515]
[1731004246186,0.1,195.86,195.82,20.0]
[1731004246475,17.99360515,195.88,195.85,17.99360515]
[1731004246476,0.1,195.88,195.85,17.99360515]
[1731004246679,0.1,195.89,195.84,17.99360515]
[1731004246889,0.1,195.89,195.82,20.0]
[1731004247053,0.1,195.9,195.85,17.99360515]
[1731004247256,18.66447635,195.91,195.85,17.99360515]
[1731004247565,0.5708712,195.91,195.87,17.99360515]
[1731004247759,0.6708712,195.91,195.87,20.0]
[1731004247967,18.66447635,195.91,195.87,20.0]
[1731004248163,0.6708712,195.91,195.87,20.0]
[1731004248678,0.6708712,195.91,195.86,20.0]
[1731004248976,18.66447635,195.91,195.86,20.0]
[1731004249279,0.6708712,195.91,195.85,20.0]
[1731004249457,0.6708712,195.91,195.85,37.99360515]
[1731004250076,0.5708712,195.91,195.85,37.99360515]
[1731004250379,0.6708712,195.91,195.85,37.99360515]
[1731004250681,0.5708712,195.91,195.87,20.0]
[1731004251180,0.5708712,195.91,195.87,37.99360515]
[1731004252568,0.5708712,195.91,195.89,20.0]
[1731004253574,0.5708712,195.91,195.89,37.99360515]
[1731004253773,0.5708712,195.91,195.88,17.99360515]
[1731004253962,0.5708712,195.91,195.89,20.0]
[1731004256078,0.5708712,195.91,195.88,20.0]
[1731004256377,0.5708712,195.91,195.89,20.0]
[1731004256585,0.6708712,195.91,195.85,15.0102]
[1731004256786,0.5708712,195.91,195.86,37.99360515]
[1731004256961,0.5708712,195.91,195.89,17.99360515]
[1731004257278,0.5708712,195.91,195.87,17.99360515]
[1731004257450,0.1,195.9,195.86,17.99360515]
[1731004257653,0.1,195.9,195.85,33.00380515]
[1731004257861,0.1,195.9,195.85,15.0102]
[1731004258280,0.6708712,195.91,195.86,17.99360515]
[1731004258460,0.1,195.9,195.86,17.99360515]
[1731004258661,0.1,195.9,195.86,20.0]
[1731004259385,0.6708712,195.91,195.86,20.0]
[1731004259589,0.6708712,195.91,195.86,37.99360515]
[1731004259769,0.6708712,195.91,195.86,20.0]
[1731004260086,0.1,195.9,195.86,20.0]
[1731004260787,0.5708712,195.91,195.86,20.0]
[1731004260788,0.6708712,195.91,195.86,20.0]
[1731004261078,0.1,195.9,195.86,20.0]
[1731004261280,0.1,195.89,195.86,20.0]
[1731004261460,0.1,195.87,195.84,20.0]
[1731004261666,0.1,195.86,195.83,5.31715241]
[1731004261873,0.1,195.85,195.83,5.31715241]
[1731004262073,0.1,195.84,195.83,5.31715241]
[1731004262588,0.1,195.86,195.83,5.31715241]
[1731004262796,0.1,195.85,195.83,5.31715241]
[1731004263286,0.1,195.84,195.83,5.31715241]
[1731004264581,3.14487465,195.84,195.83,5.31715241]
[1731004266474,3.14487465,195.84,195.83,23.28852459]
[1731004266791,3.14487465,195.84,195.83,5.31715241]
[1731004267867,3.14481708,195.84,195.83,5.31715241]
[1731004268072,6.08963416,195.84,195.83,5.31715241]
[1731004268379,6.08963416,195.84,195.83,25.31715241]
[1731004269472,6.08963416,195.84,195.83,43.28852459]
[1731004269693,6.08963416,195.84,195.83,25.31715241]
[1731004270086,6.08963416,195.84,195.83,43.28852459]
[1731004270472,6.08963416,195.84,195.83,82.84720859]
[1731004270677,3.04481708,195.84,195.83,82.84720859]
[1731004271288,3.04481708,195.84,195.83,84.41504289]
[1731004271497,0.6708712,195.91,195.84,43.776884]
[1731004271695,3.14634122,195.9,195.88,20.0]
[1731004271899,3.04634122,195.89,195.88,20.0]
[1731004272074,3.14634122,195.89,195.85,23.29068972]
[1731004272276,0.1,195.87,195.85,5.31931754]
[1731004272492,3.14634122,195.86,195.85,5.31931754]
[1731004273494,6.95744979,195.86,195.85,5.31931754]
[1731004273799,25.02890307,195.86,195.85,5.31931754]
[1731004275201,21.9811578,195.86,195.85,5.31931754]
[1731004275380,21.8811578,195.86,195.85,5.31931754]
[1731004275588,25.0292695,195.86,195.85,5.31931754]
[1731004277084,31.25123379,195.86,195.85,5.31931754]
[1731004277294,31.25084343,195.86,195.85,5.31931754]
[1731004278608,31.25084343,195.86,195.85,4.81931754]
[1731004278992,31.25018623,195.86,195.85,4.81931754]
[1731004280503,55.02707023,195.86,195.85,4.81931754]
[1731004280878,0.1,195.78,195.74,1.54780779]
[1731004281099,3.0474545,195.77,195.71,17.97137218]
[1731004281306,3.0474545,195.76,195.72,17.97137218]
[1731004281501,3.1474545,195.75,195.71,17.97137218]
[1731004281709,3.0474545,195.74,195.72,17.97137218]
[1731004281919,3.0474545,195.73,195.72,17.97137218]
[1731004282090,0.1,195.75,195.72,17.97137218]
[1731004282298,3.04535455,195.74,195.72,17.97137218]
[1731004282618,0.1,195.75,195.73,17.97137218]
[1731004282908,3.04541776,195.74,195.72,17.97137218]
[1731004283110,0.1,195.75,195.72,37.97137218]
[1731004283289,3.04445307,195.74,195.72,37.97137218]
[1731004283492,0.1,195.75,195.72,37.97137218]
[1731004283714,3.04458062,195.74,195.72,37.97137218]
[1731004283923,0.1,195.75,195.72,37.97137218]
[1731004284102,3.0445657,195.74,195.72,37.97137218]
[1731004284303,0.1,195.75,195.72,37.97137218]
[1731004284505,3.04400646,195.74,195.72,37.97137218]
[1731004284810,0.1,195.75,195.72,37.97137218]
[1731004285021,3.04401421,195.74,195.72,37.97137218]
[1731004285321,0.1,195.75,195.72,37.97137218]
[1731004285509,3.04337645,195.74,195.72,37.97137218]
[1731004285700,0.1,195.75,195.72,37.97137218]
[1731004285901,3.04336585,195.74,195.72,37.97137218]
[1731004286203,0.1,195.75,195.72,37.97137218]
[1731004286397,11.4225929,195.78,195.72,37.97137218]
[1731004286621,7.91137983,195.77,195.72,37.97137218]
[1731004286919,3.04281996,195.76,195.72,37.97137218]
[1731004287123,3.04281996,195.75,195.72,37.97137218]
[1731004287310,3.04281996,195.74,195.72,37.97137218]
[1731004287516,11.4225929,195.78,195.72,20.0]
[1731004287707,7.90967804,195.77,195.72,20.0]
[1731004287912,11.4225929,195.78,195.72,37.97137218]
[1731004287913,3.04218386,195.76,195.72,37.97137218]
[1731004288098,3.04218386,195.75,195.72,37.97137218]
[1731004288298,3.04218386,195.74,195.73,20.0]
[1731004288506,17.97137218,195.81,195.73,37.97137218]
[1731004288824,11.71026881,195.8,195.75,17.97137218]
[1731004289028,17.97137218,195.81,195.75,17.97137218]
[1731004289029,7.90807157,195.79,195.75,17.97137218]
[1731004289317,17.97137218,195.81,195.75,17.97137218]
[1731004289318,3.04156599,195.78,195.75,17.97137218]
[1731004289527,3.04156599,195.77,195.75,17.97137218]
[1731004289711,3.04156599,195.76,195.75,17.97137218]
[1731004290040,11.50698681,195.83,195.76,20.0]
[1731004290327,6.84211768,195.82,195.77,11.50698681]
[1731004290626,7.90624752,195.81,195.77,11.50698681]
[1731004290821,3.04080957,195.8,195.78,11.50698681]
[1731004291029,162.9,195.86,195.78,31.50698681]
[1731004291030,3.04080957,195.79,195.78,31.50698681]
[1731004291919,3.04080957,195.79,195.74,0.1]
[1731004292105,3.04080957,195.78,195.77,11.50698681]
[1731004292306,3.04080957,195.78,195.77,31.50698681]
[1731004292702,3.04080957,195.78,195.75,11.50698681]
[1731004292703,7.90615187,195.78,195.75,11.50698681]
[1731004293021,3.04080957,195.77,195.76,20.0]
[1731004293401,3.04080957,195.77,195.75,17.97912651]
[1731004293608,7.90580877,195.77,195.76,17.97912651]
[1731004293832,7.90580877,195.77,195.76,37.97912651]
[1731004294016,4.86511309,195.77,195.76,37.97912651]
[1731004294218,3.04069553,195.77,195.76,37.97912651]
[1731004294729,3.04069553,195.77,195.76,20.0]
[1731004295115,3.04069553,195.77,195.75,20.0]
[1731004295426,3.04069553,195.76,195.75,20.0]
[1731004295627,3.04069553,195.76,195.72,23.29372657]
[1731004295811,7.90490638,195.75,195.72,5.31460006]
[1731004296020,3.04069553,195.74,195.72,5.31460006]
[1731004296236,3.04069553,195.73,195.72,5.31460006]
[1731004296909,7.90462827,195.73,195.72,5.31460006]
[1731004297308,17.97912651,195.74,195.72,5.31460006]
[1731004297528,7.90233239,195.73,195.72,5.31460006]
[1731004297719,25.8814589,195.73,195.72,5.31460006]
[1731004298226,25.8814589,195.73,195.64,17.97912651]
[1731004298432,17.97912651,195.7,195.67,5.31445817]
[1731004298628,25.8814589,195.69,195.67,5.31445817]
[1731004298815,25.88091667,195.68,195.59,6.4433]
[1731004299014,17.97912651,195.65,195.58,1.5999041]
[1731004299338,17.97912651,195.62,195.6,5.31405925]
[1731004299528,0.12549,195.66,195.6,5.31405925]
[1731004299529,21.01848512,195.61,195.6,5.31405925]
[1731004299711,25.87937338,195.61,195.54,17.97912651]
[1731004300028,3.03935861,195.6,195.56,17.97912651]
[1731004300235,3.03935861,195.59,195.57,17.97912651]
[1731004300525,3.03935861,195.58,195.57,17.97912651]
[1731004301328,17.97912651,195.64,195.57,17.97912651]
[1731004301541,7.88208195,195.63,195.58,37.97912651]
[1731004301831,7.88208195,195.62,195.58,37.97912651]
[1731004302002,3.03156998,195.61,195.58,37.97912651]
[1731004302206,3.03156998,195.6,195.58,37.97912651]
[1731004302441,3.02916369,195.59,195.58,37.97912651]
[1731004302826,3.02916369,195.59,195.57,17.97912651]
[1731004303034,17.97912651,195.64,195.58,37.97912651]
[1731004303232,7.87674054,195.63,195.58,37.97912651]
[1731004303420,7.87674054,195.62,195.59,17.97912651]
[1731004303616,3.02951559,195.61,195.59,17.97912651]
[1731004303816,3.02951559,195.6,195.59,17.97912651]
[1731004304417,3.02951559,195.6,195.56,20.0]
[1731004304612,17.97912651,195.66,195.59,17.97912651]
[1731004304813,7.86796312,195.65,195.6,17.97912651]
[1731004305019,7.8678964,195.64,195.6,17.97912651]
[1731004305237,7.8678964,195.63,195.6,17.97912651]
[1731004305538,4.8417824,195.62,195.6,17.97912651]
[1731004305724,17.97912651,195.66,195.6,17.97912651]
[1731004305725,3.026114,195.61,195.6,17.97912651]
[1731004305926,3.026114,195.61,195.59,17.97912651]
[1731004306225,3.026114,195.6,195.59,17.97912651]
[1731004306817,3.026114,195.6,195.56,20.0]
[1731004307038,3.026114,195.59,195.58,37.97912651]
[1731004307417,3.026114,195.59,195.57,17.97912651]
[1731004307734,17.97912651,195.64,195.57,17.97912651]
[1731004307928,25.83645242,195.63,195.57,17.97912651]
[1731004308137,17.97912651,195.6,195.55,5.31941371]
[1731004308443,0.12549,195.61,195.55,5.31941371]
[1731004308444,17.97912651,195.57,195.55,5.31941371]
[1731004308915,25.96091415,195.56,195.55,5.31941371]
[1731004310317,25.96091415,195.56,195.45,6.6214]
[1731004310318,49.73779815,195.56,195.45,6.6214]
[1731004310517,0.12549,195.53,195.52,5.32443062]
[1731004310742,3.14749761,195.53,195.48,17.97912651]
[1731004310942,3.02200761,195.52,195.5,17.97912651]
[1731004311116,162.9,195.61,195.51,17.97912651]
[1731004311117,17.97912651,195.57,195.51,17.97912651]
[1731004311322,7.83970609,195.56,195.51,17.97912651]
[1731004311540,7.83970609,195.55,195.51,17.97912651]
[1731004311836,3.01527157,195.54,195.51,17.97912651]
[1731004312043,3.01527157,195.53,195.51,17.97912651]
[1731004312344,17.97912651,195.56,195.5,23.29958104]
[1731004312637,3.01373332,195.55,195.5,5.32045453]
[1731004312947,3.01373332,195.54,195.5,5.32045453]
[1731004313114,3.01373332,195.53,195.5,5.32045453]